[Event "17th Memorial Lezcano Montalvo 2025"]
[Site "Gran Canaria"]
[Date "2025.04.18"]
[Round "7.1"]
[White "Kaczur, Florian"]
[Black "Larino Nieto, David"]
[Result "1-0"]
[Annotator "RC"]
[ECO "B00"]
[WhiteElo "2495"]
[BlackElo "2448"]
[PlyCount "54"]
[EventDate "2025.04.13"]
[EventType "swiss"]
[EventCountry "ESP"]
[SourceTitle "playchess.com"]
[Source "ChessBase"]
[SourceQuality "1"]
[TimeControl "5400+30"]

1. e4 {[%emt 0:00:03]} b6 {[%emt 0:08:22]} 2. d4 {[%emt 0:00:04]} Bb7 {[%emt 0:00:04]} 3. Bd3 {[%emt 0:00:14]} d6 {[%emt 0:00:08]} 4. Nc3 {[%emt 0:00:40]} e5 {[%emt 0:01:02]} 5. Nf3 {[%emt 0:17:13]} Nd7 {[%emt 0:01:29]} 6. Bc4 {[%emt 0:04:10]} Be7 {[%emt 0:12:54]} 7. dxe5 {[%emt 0:00:42]} dxe5 {[%emt 0:02:42]} 8. Ng5 {[%emt 0:02:31]} Nh6 {[%emt 0:19:45]} 9. h4 {[%emt 0:02:13]} Bb4 {[%emt 0:04:47]} 10. Bd2 {[%emt 0:05:55]} Nc5 {[%emt 0:08:59]} 11. Qe2 {[%emt 0:09:23]} Qe7 {[%emt 0:08:20]} 12. O-O-O {[%emt 0:07:40]} O-O-O {[%emt 0:07:56]} 13. Nd5 {[%emt 0:12:46]} Bxd2+ {[%emt 0:00:05]} 14. Rxd2 {[%emt 0:00:04]} Qe8 {[%emt 0:00:22]} 15. Rhd1 {[%emt 0:02:21]} Kb8 {[%emt 0:00:01]} 16. b4 {[%emt 0:05:59]} Ne6 {[%emt 0:10:16]} 17. Nxe6 {[%emt 0:00:56]} Qxe6 {[%emt 0:00:14]} 18. Nxc7 {[%emt 0:06:22]} Rxd2 {[%emt 0:00:03]} 19. Rxd2 {[%emt 0:00:06]} Qe7 {[%emt 0:01:59]} 20. Na6+ {[%emt 0:01:25]} Bxa6 {[%emt 0:00:44]} 21. Bxa6 {[%emt 0:00:05]} Qxb4 {[%emt 0:00:07]} 22. Rd7 {[%emt 0:05:00]} Qa3+ {[%emt 0:00:23]} 23. Kd1 {[%emt 0:01:25]} Qc3 {[%emt 0:11:18]} 24. Kc1 {[%emt 0:15:13]} Qa3+ {[%emt 0:00:30]} 25. Kd1 Qc3 26. Qd3 {[%emt 0:01:00]} Qxd3+ {[%emt 0:01:00]} 27. cxd3 Ng4 {[%emt 0:00:30]} 1-0

[Event "17th Memorial Lezcano Montalvo 2025"]
[Site "Gran Canaria"]
[Date "2025.04.18"]
[Round "7.2"]
[White "Pap, Misa"]
[Black "Fiorito, Francisco"]
[Result "1-0"]
[Annotator "RC"]
[ECO "B22"]
[WhiteElo "2444"]
[BlackElo "2431"]
[PlyCount "77"]
[EventDate "2025.04.13"]
[EventType "swiss"]
[EventCountry "ESP"]
[SourceTitle "playchess.com"]
[Source "ChessBase"]
[SourceQuality "1"]
[TimeControl "5400+30"]

1. e4 {[%emt 0:05:35]} c5 {[%emt 0:00:05]} 2. Nf3 {[%emt 0:00:32]} Nc6 {[%emt 0:00:08]} 3. c3 {[%emt 0:00:08]} Nf6 {[%emt 0:00:07]} 4. e5 {[%emt 0:00:14]} Nd5 {[%emt 0:00:05]} 5. Bc4 {[%emt 0:00:10]} Nb6 {[%emt 0:00:06]} 6. Bb3 {[%emt 0:00:04]} d5 {[%emt 0:00:05]} 7. exd6 {[%emt 0:00:07]} c4 {[%emt 0:00:08]} 8. Bc2 {[%emt 0:00:17]} Qxd6 {[%emt 0:00:04]} 9. Na3 {[%emt 0:00:12]} Ne5 {[%emt 0:21:55]} 10. Nxe5 {[%emt 0:00:26]} Qxe5+ {[%emt 0:00:04]} 11. Qe2 {[%emt 0:00:05]} Qxe2+ {[%emt 0:00:34]} 12. Kxe2 {[%emt 0:00:04]} Bd7 {[%emt 0:00:21]} 13. b3 {[%emt 0:01:32]} Rc8 {[%emt 0:01:18]} 14. Re1 {[%emt 0:16:14]} e6 {[%emt 0:01:42]} 15. Kf1 {[%emt 0:00:24]} Be7 {[%emt 0:02:20]} 16. Be4 {[%emt 0:00:28]} cxb3 {[%emt 0:02:26]} 17. axb3 {[%emt 0:00:34]} Bc6 {[%emt 0:00:25]} 18. Nc4 {[%emt 0:15:27]} Bxe4 {[%emt 0:11:31]} 19. Rxe4 {[%emt 0:00:56]} Nd7 {[%emt 0:00:28]} 20. Rxa7 {[%emt 0:17:36]} Nc5 {[%emt 0:00:42]} 21. Re1 {[%emt 0:04:58]} Nxb3 {[%emt 0:12:09]} 22. Nb6 {[%emt 0:00:35]} Rd8 {[%emt 0:00:42]} 23. d4 {[%emt 0:01:01]} Nxc1 {[%emt 0:00:39]} 24. Rxc1 {[%emt 0:00:09]} Bg5 {[%emt 0:00:40]} 25. Rb1 {[%emt 0:04:02]} O-O {[%emt 0:00:51]} 26. Rxb7 {[%emt 0:00:06]} Rfe8 {[%emt 0:03:08]} 27. g3 {[%emt 0:04:40]} Re7 {[%emt 0:02:43]} 28. Rxe7 {[%emt 0:01:06]} Bxe7 {[%emt 0:00:02]} 29. Ke2 {[%emt 0:00:53]} f6 {[%emt 0:00:27]} 30. Rb5 {[%emt 0:01:52]} Kf7 {[%emt 0:00:30]} 31. Kd3 {[%emt 0:00:10]} g5 {[%emt 0:01:38]} 32. c4 {[%emt 0:01:20]} f5 {[%emt 0:00:35]} 33. c5 {[%emt 0:03:49]} Bf6 {[%emt 0:01:14]} 34. Rb4 {[%emt 0:00:36]} Ke7 {[%emt 0:00:40]} 35. Ra4 {[%emt 0:00:48]} h5 {[%emt 0:00:45]} 36. Ra7+ {[%emt 0:01:00]} Ke8 {[%emt 0:00:00]} 37. d5 {[%emt 0:00:57]} Be7 {[%emt 0:00:46]} 38. Kc4 {[%emt 0:01:54]} Rb8 {[%emt 0:00:22]} 39. dxe6 {[%emt 0:00:52]} 1-0

[Event "17th Memorial Lezcano Montalvo 2025"]
[Site "Gran Canaria"]
[Date "2025.04.18"]
[Round "7.3"]
[White "Fiorito, Joaquin"]
[Black "Martinez Ramirez, Lennis"]
[Result "1-0"]
[Annotator "RC"]
[ECO "C55"]
[WhiteElo "2402"]
[BlackElo "2443"]
[PlyCount "155"]
[EventDate "2025.04.13"]
[EventType "swiss"]
[EventCountry "ESP"]
[SourceTitle "playchess.com"]
[Source "ChessBase"]
[SourceQuality "1"]
[TimeControl "5400+30"]

1. e4 {[%emt 0:00:04]} e5 {[%emt 0:01:54]} 2. Nf3 {[%emt 0:00:11]} Nc6 {[%emt 0:00:01]} 3. Bc4 {[%emt 0:00:10]} Nf6 {[%emt 0:00:35]} 4. d3 {[%emt 0:00:05]} Be7 {[%emt 0:00:52]} 5. O-O {[%emt 0:00:19]} O-O {[%emt 0:00:02]} 6. a4 {[%emt 0:00:53]} d6 {[%emt 0:00:37]} 7. c3 {[%emt 0:00:32]} Bg4 {[%emt 0:01:08]} 8. h3 {[%emt 0:02:05]} Bh5 {[%emt 0:00:02]} 9. Re1 {[%emt 0:01:30]} Kh8 {[%emt 0:00:20]} 10. Nbd2 {[%emt 0:01:30]} d5 {[%emt 0:01:15]} 11. exd5 {[%emt 0:06:36]} Nxd5 {[%emt 0:00:01]} 12. Nf1 {[%emt 0:02:37]} Nb6 {[%emt 0:00:55]} 13. Bb3 {[%emt 0:01:27]} Nd7 {[%emt 0:00:23]} 14. Ng3 {[%emt 0:12:40]} Bg6 {[%emt 0:00:10]} 15. Bd5 {[%emt 0:06:07]} f5 {[%emt 0:06:27]} 16. b4 {[%emt 0:03:45]} Bf6 {[%emt 0:01:45]} 17. b5 {[%emt 0:04:42]} Nc5 {[%emt 0:10:11]} 18. Ba2 {[%emt 0:17:35]} Nxd3 {[%emt 0:20:29]} 19. bxc6 {[%emt 0:00:16]} e4 {[%emt 0:01:04]} 20. cxb7 {[%emt 0:04:12]} Rb8 {[%emt 0:00:10]} 21. Nd4 {[%emt 0:00:52]} Bxd4 {[%emt 0:01:23]} 22. cxd4 {[%emt 0:00:06]} f4 {[%emt 0:00:36]} 23. Nxe4 {[%emt 0:02:38]} Nxe1 {[%emt 0:00:31]} 24. Nc5 {[%emt 0:00:16]} Re8 {[%emt 0:10:25]} 25. Ne6 {[%emt 0:04:49]} Qf6 {[%emt 0:01:38]} 26. Nxf4 {[%emt 0:08:42]} Bc2 {[%emt 0:23:01]} 27. Qd2 {[%emt 0:02:17]} Bf5 {[%emt 0:03:03]} 28. Bb2 {[%emt 0:02:58]} Nc2 {[%emt 0:00:17]} 29. Rc1 {[%emt 0:00:05]} Rxb7 {[%emt 0:00:30]} 30. Bc3 {[%emt 0:00:16]} Qg5 {[%emt 0:03:59]} 31. h4 {[%emt 0:02:28]} Qxh4 {[%emt 0:07:56]} 32. Rxc2 {[%emt 0:00:52]} Bxc2 {[%emt 0:01:41]} 33. g3 {[%emt 0:00:00]} Qg4 {[%emt 0:00:39]} 34. Qxc2 {[%emt 0:00:07]} Rb6 {[%emt 0:00:01]} 35. Bd5 {[%emt 0:03:15]} Reb8 {[%emt 0:02:04]} 36. Kg2 {[%emt 0:00:48]} Rb1 {[%emt 0:00:52]} 37. Bf3 {[%emt 0:00:29]} Qg5 {[%emt 0:00:03]} 38. d5 {[%emt 0:00:09]} Qh6 {[%emt 0:00:01]} 39. Nh5 {[%emt 0:00:12]} Qc1 {[%emt 0:00:35]} 40. Bxg7+ {[%emt 0:00:43]} Kg8 {[%emt 0:00:00]} 41. Qxc1 {[%emt 0:00:19]} Rxc1 {[%emt 0:00:02]} 42. d6 {[%emt 0:00:40]} Kf7 {[%emt 0:01:07]} 43. dxc7 {[%emt 0:00:11]} Re8 {[%emt 0:00:01]} 44. Bd4 {[%emt 0:02:30]} Rxc7 {[%emt 0:00:03]} 45. Nf4 {[%emt 0:00:49]} Rd8 {[%emt 0:00:57]} 46. Be3 {[%emt 0:00:05]} Rcd7 {[%emt 0:00:32]} 47. Be4 {[%emt 0:00:29]} Kf6 {[%emt 0:00:11]} 48. Ne2 {[%emt 0:02:39]} Ke5 {[%emt 0:00:36]} 49. Bc6 {[%emt 0:00:12]} Rf7 {[%emt 0:00:19]} 50. g4 {[%emt 0:01:22]} Rc8 {[%emt 0:00:52]} 51. f4+ {[%emt 0:00:28]} Kd6 {[%emt 0:00:01]} 52. Bb5 {[%emt 0:00:07]} Re7 {[%emt 0:01:46]} 53. Kf3 {[%emt 0:00:12]} Kd5 {[%emt 0:00:56]} 54. f5 {[%emt 0:00:15]} Rc2 {[%emt 0:00:59]} 55. f6 {[%emt 0:00:52]} Rf7 {[%emt 0:00:15]} 56. g5 {[%emt 0:00:09]} h6 {[%emt 0:01:16]} 57. Be8 {[%emt 0:00:35]} Rf8 {[%emt 0:00:10]} 58. g6 {[%emt 0:04:05]} Rc8 {[%emt 0:00:38]} 59. Nf4+ {[%emt 0:00:35]} Kd6 {[%emt 0:00:39]} 60. f7 {[%emt 0:00:20]} Rfxe8 {[%emt 0:01:34]} 61. fxe8=Q {[%emt 0:00:06]} Rxe8 {[%emt 0:00:00]} 62. Bd4 {[%emt 0:00:14]} a6 {[%emt 0:00:00]} 63. Kg4 {[%emt 0:00:21]} Ke7 {[%emt 0:00:43]} 64. Kh5 {[%emt 0:00:49]} Rd8 {[%emt 0:00:41]} 65. Be5 {[%emt 0:00:45]} Rd2 {[%emt 0:00:22]} 66. Kxh6 {[%emt 0:00:19]} Rh2+ {[%emt 0:00:02]} 67. Kg5 {[%emt 0:00:48]} Ra2 {[%emt 0:00:18]} 68. Kf5 {[%emt 0:00:28]} a5 {[%emt 0:01:13]} 69. Bc3 {[%emt 0:00:50]} Kf8 {[%emt 0:00:35]} 70. Nd5 {[%emt 0:00:36]} Rf2+ {[%emt 0:00:16]} 71. Ke6 {[%emt 0:00:05]} Re2+ {[%emt 0:00:19]} 72. Be5 {[%emt 0:00:09]} Rg2 {[%emt 0:00:55]} 73. g7+ {[%emt 0:00:04]} Kg8 {[%emt 0:00:05]} 74. Ne7+ {[%emt 0:00:04]} Kh7 {[%emt 0:00:10]} 75. g8=Q+ {[%emt 0:00:11]} Rxg8 {[%emt 0:00:01]} 76. Nxg8 {[%emt 0:00:05]} Kxg8 {[%emt 0:00:05]} 77. Ke7 {[%emt 0:00:11]} Kh7 {[%emt 0:00:02]} 78. Bc3 {[%emt 0:00:12]} 1-0

[Event "17th Memorial Lezcano Montalvo 2025"]
[Site "Gran Canaria"]
[Date "2025.04.18"]
[Round "7.4"]
[White "Akhvlediani, Irakli"]
[Black "Castellanos Gomez, Alejandro"]
[Result "1/2-1/2"]
[Annotator "RC"]
[ECO "A13"]
[WhiteElo "2387"]
[BlackElo "2267"]
[PlyCount "68"]
[EventDate "2025.04.13"]
[EventType "swiss"]
[EventCountry "ESP"]
[SourceTitle "playchess.com"]
[Source "ChessBase"]
[SourceQuality "1"]
[TimeControl "5400+30"]

1. c4 {[%emt 0:00:02]} e6 {[%emt 0:00:13]} 2. g3 {[%emt 0:00:14]} d5 {[%emt 0:00:31]} 3. Bg2 {[%emt 0:00:05]} Nf6 {[%emt 0:00:39]} 4. Nf3 {[%emt 0:00:04]} dxc4 {[%emt 0:00:36]} 5. Qa4+ {[%emt 0:00:04]} c6 {[%emt 0:00:06]} 6. Qxc4 {[%emt 0:00:07]} b5 {[%emt 0:00:08]} 7. Qc2 {[%emt 0:01:07]} Bb7 {[%emt 0:00:13]} 8. a4 {[%emt 0:00:33]} Be7 {[%emt 0:07:00]} 9. Nc3 {[%emt 0:00:42]} b4 {[%emt 0:04:46]} 10. Nd1 {[%emt 0:00:13]} O-O {[%emt 0:02:05]} 11. Ne3 {[%emt 0:00:57]} c5 {[%emt 0:02:55]} 12. O-O {[%emt 0:01:03]} Nc6 {[%emt 0:00:27]} 13. Nc4 {[%emt 0:00:22]} Na5 {[%emt 0:09:57]} 14. Nxa5 {[%emt 0:02:10]} Qxa5 {[%emt 0:00:03]} 15. d3 {[%emt 0:00:04]} Rac8 {[%emt 0:03:15]} 16. Ne5 {[%emt 0:04:14]} Bxg2 {[%emt 0:09:37]} 17. Kxg2 {[%emt 0:00:05]} Qc7 {[%emt 0:02:31]} 18. Nc4 {[%emt 0:00:25]} e5 {[%emt 0:01:02]} 19. e4 {[%emt 0:09:59]} Nd7 {[%emt 0:06:08]} 20. Ne3 {[%emt 0:30:33]} Qc6 {[%emt 0:04:24]} 21. f3 {[%emt 0:07:36]} Rfd8 {[%emt 0:00:42]} 22. b3 {[%emt 0:01:34]} Nf8 {[%emt 0:07:52]} 23. Nd5 {[%emt 0:01:17]} Qe6 {[%emt 0:11:17]} 24. Be3 {[%emt 0:01:40]} Nd7 {[%emt 0:01:48]} 25. Rac1 {[%emt 0:00:29]} f5 {[%emt 0:01:40]} 26. Qc4 {[%emt 0:05:19]} Kh8 {[%emt 0:00:06]} 27. exf5 {[%emt 0:00:12]} Qd6 {[%emt 0:01:19]} 28. Nxe7 {[%emt 0:00:08]} Qxe7 {[%emt 0:00:12]} 29. Qe6 {[%emt 0:00:03]} Qf8 {[%emt 0:01:46]} 30. Bg5 {[%emt 0:04:47]} Nf6 {[%emt 0:00:17]} 31. Bxf6 {[%emt 0:00:11]} gxf6 {[%emt 0:00:42]} 32. Rfd1 {[%emt 0:00:29]} Rd6 {[%emt 0:01:10]} 33. Qc4 {[%emt 0:00:04]} Qd8 {[%emt 0:01:42]} 34. Qe4 {[%emt 0:12:00]} Qd7 {[%emt 0:02:18]} 1/2-1/2

[Event "17th Memorial Lezcano Montalvo 2025"]
[Site "Gran Canaria"]
[Date "2025.04.18"]
[Round "7.5"]
[White "Alsina Leal, Daniel"]
[Black "Strikovic, Aleksa"]
[Result "1/2-1/2"]
[Annotator "RC"]
[ECO "C41"]
[WhiteElo "2496"]
[BlackElo "2367"]
[PlyCount "104"]
[EventDate "2025.04.13"]
[EventType "swiss"]
[EventCountry "ESP"]
[SourceTitle "playchess.com"]
[Source "ChessBase"]
[SourceQuality "1"]
[TimeControl "5400+30"]

1. e4 {[%emt 0:02:20]} d6 {[%emt 0:00:12]} 2. d4 {[%emt 0:00:16]} Nf6 {[%emt 0:00:08]} 3. Nc3 {[%emt 0:00:14]} e5 {[%emt 0:00:06]} 4. Nf3 {[%emt 0:00:08]} Nbd7 {[%emt 0:00:07]} 5. g4 {[%emt 0:00:11]} h6 {[%emt 0:00:11]} 6. h3 {[%emt 0:00:17]} c6 {[%emt 0:00:12]} 7. a4 {[%emt 0:05:49]} exd4 {[%emt 0:05:04]} 8. Nxd4 {[%emt 0:02:00]} d5 {[%emt 0:01:04]} 9. exd5 {[%emt 0:03:41]} Nxd5 {[%emt 0:12:51]} 10. Nxd5 {[%emt 0:01:58]} cxd5 {[%emt 0:00:05]} 11. Qe2+ {[%emt 0:01:55]} Be7 {[%emt 0:05:34]} 12. Nf5 {[%emt 0:01:49]} Nf6 {[%emt 0:00:06]} 13. Qxe7+ {[%emt 0:06:41]} Qxe7+ {[%emt 0:00:05]} 14. Nxe7 {[%emt 0:00:04]} Kxe7 {[%emt 0:00:05]} 15. Be3 {[%emt 0:00:58]} h5 {[%emt 0:02:18]} 16. g5 {[%emt 0:11:30]} Ne4 {[%emt 0:02:45]} 17. O-O-O {[%emt 0:12:29]} Be6 {[%emt 0:01:28]} 18. Bg2 {[%emt 0:04:42]} Rhc8 {[%emt 0:00:59]} 19. Rd4 {[%emt 0:02:48]} Rc6 {[%emt 0:08:04]} 20. Rhd1 {[%emt 0:14:38]} Rac8 {[%emt 0:02:08]} 21. c3 {[%emt 0:00:44]} Rc4 {[%emt 0:00:42]} 22. a5 {[%emt 0:07:20]} a6 {[%emt 0:01:22]} 23. Rxd5 {[%emt 0:03:52]} Bxd5 {[%emt 0:00:26]} 24. Rxd5 {[%emt 0:00:02]} Ke6 {[%emt 0:01:13]} 25. Rd3 {[%emt 0:02:12]} f5 {[%emt 0:04:42]} 26. gxf6 {[%emt 0:02:38]} gxf6 {[%emt 0:00:03]} 27. Bd4 {[%emt 0:03:45]} f5 {[%emt 0:01:09]} 28. Bf3 {[%emt 0:00:37]} h4 {[%emt 0:00:45]} 29. Bd1 {[%emt 0:00:09]} Nc5 {[%emt 0:09:21]} 30. Re3+ {[%emt 0:00:11]} Kd7 {[%emt 0:00:02]} 31. Bc2 {[%emt 0:01:28]} f4 {[%emt 0:02:22]} 32. Re1 {[%emt 0:03:07]} Rxd4 {[%emt 0:17:36]} 33. Bf5+ {[%emt 0:01:45]} Kd8 {[%emt 0:02:56]} 34. cxd4 {[%emt 0:01:12]} Nd3+ {[%emt 0:02:51]} 35. Kd2 {[%emt 0:00:27]} Nxe1 {[%emt 0:00:09]} 36. Bxc8 {[%emt 0:00:29]} Nf3+ {[%emt 0:00:06]} 37. Ke2 {[%emt 0:00:12]} Nxd4+ {[%emt 0:00:06]} 38. Kd3 {[%emt 0:00:10]} Nb3 {[%emt 0:00:02]} 39. Bg4 {[%emt 0:00:57]} Nxa5 {[%emt 0:00:05]} 40. Be2 {[%emt 0:00:35]} Nb3 {[%emt 0:03:27]} 41. Ke4 {[%emt 0:01:08]} f3 {[%emt 0:00:06]} 42. Bd1 {[%emt 0:01:14]} Nc5+ {[%emt 0:00:42]} 43. Kxf3 {[%emt 0:01:10]} Ke7 {[%emt 0:00:23]} 44. Ke3 {[%emt 0:00:46]} Kd6 {[%emt 0:00:36]} 45. f4 {[%emt 0:00:58]} a5 {[%emt 0:00:17]} 46. Be2 {[%emt 0:01:15]} Na4 {[%emt 0:00:14]} 47. b3 {[%emt 0:00:17]} Nc5 {[%emt 0:00:03]} 48. Bc4 {[%emt 0:00:28]} b5 {[%emt 0:02:27]} 49. Bxb5 {[%emt 0:00:28]} Nxb3 {[%emt 0:00:06]} 50. Bc4 {[%emt 0:00:53]} a4 {[%emt 0:00:28]} 51. Bg8 {[%emt 0:00:18]} Nc5 {[%emt 0:00:14]} 52. Ba2 {[%emt 0:00:35]} Ke7 {[%emt 0:17:57]} 1/2-1/2

[Event "17th Memorial Lezcano Montalvo 2025"]
[Site "Gran Canaria"]
[Date "2025.04.18"]
[Round "7.6"]
[White "Korneev, Oleg"]
[Black "Sanz Wawer, Daniel"]
[Result "1-0"]
[Annotator "RC"]
[ECO "C54"]
[WhiteElo "2466"]
[BlackElo "2316"]
[PlyCount "103"]
[EventDate "2025.04.13"]
[EventType "swiss"]
[EventCountry "ESP"]
[SourceTitle "playchess.com"]
[Source "ChessBase"]
[SourceQuality "1"]
[TimeControl "5400+30"]

1. e4 {[%emt 0:00:22]} e5 {[%emt 0:00:10]} 2. Bc4 {[%emt 0:00:49]} Nc6 {[%emt 0:03:35]} 3. Nf3 {[%emt 0:00:16]} Bc5 {[%emt 0:01:03]} 4. O-O {[%emt 0:02:48]} Nf6 {[%emt 0:00:26]} 5. d3 {[%emt 0:00:03]} O-O {[%emt 0:00:24]} 6. Nbd2 {[%emt 0:00:02]} d6 {[%emt 0:01:44]} 7. c3 {[%emt 0:00:07]} a5 {[%emt 0:00:46]} 8. Bb3 {[%emt 0:03:05]} Ba7 {[%emt 0:00:30]} 9. h3 {[%emt 0:00:26]} h6 {[%emt 0:00:34]} 10. Re1 {[%emt 0:00:14]} Ne7 {[%emt 0:01:33]} 11. Nf1 {[%emt 0:01:44]} Ng6 {[%emt 0:00:37]} 12. Ng3 {[%emt 0:00:35]} c6 {[%emt 0:03:34]} 13. d4 {[%emt 0:00:44]} Re8 {[%emt 0:03:01]} 14. Bc2 {[%emt 0:15:52]} Qc7 {[%emt 0:02:25]} 15. Be3 {[%emt 0:03:02]} Be6 {[%emt 0:09:08]} 16. Qd2 {[%emt 0:02:33]} Rad8 {[%emt 0:11:01]} 17. Nf5 {[%emt 0:18:13]} Bxf5 {[%emt 0:08:06]} 18. exf5 {[%emt 0:00:07]} Nf4 {[%emt 0:01:20]} 19. Bxf4 {[%emt 0:12:28]} exf4 {[%emt 0:00:05]} 20. Qxf4 {[%emt 0:00:10]} Rxe1+ {[%emt 0:01:41]} 21. Rxe1 {[%emt 0:01:10]} Re8 {[%emt 0:00:39]} 22. Rxe8+ {[%emt 0:02:01]} Nxe8 {[%emt 0:00:16]} 23. g4 {[%emt 0:18:34]} Bb8 {[%emt 0:12:21]} 24. Qe3 {[%emt 0:03:59]} Kf8 {[%emt 0:01:38]} 25. h4 {[%emt 0:01:58]} Nf6 {[%emt 0:04:34]} 26. g5 {[%emt 0:00:30]} Nd5 {[%emt 0:04:09]} 27. gxh6 {[%emt 0:07:03]} Nxe3 {[%emt 0:02:37]} 28. h7 {[%emt 0:00:02]} Nxc2 {[%emt 0:00:23]} 29. h8=Q+ {[%emt 0:00:02]} Ke7 {[%emt 0:00:06]} 30. Qxg7 {[%emt 0:00:16]} Qd7 {[%emt 0:10:03]} 31. Qg5+ {[%emt 0:00:16]} Kf8 {[%emt 0:01:19]} 32. h5 {[%emt 0:01:07]} Qe7 {[%emt 0:01:50]} 33. f6 {[%emt 0:01:18]} Qe6 {[%emt 0:04:18]} 34. h6 {[%emt 0:00:34]} Ne1 {[%emt 0:00:28]} 35. Qg7+ {[%emt 0:04:52]} Ke8 {[%emt 0:00:05]} 36. Ng5 {[%emt 0:00:15]} Qd5 {[%emt 0:04:35]} 37. Qg8+ {[%emt 0:00:43]} Kd7 {[%emt 0:00:04]} 38. Qxf7+ {[%emt 0:00:07]} Qxf7 {[%emt 0:00:04]} 39. Nxf7 {[%emt 0:00:03]} Nf3+ {[%emt 0:00:05]} 40. Kf1 {[%emt 0:00:47]} Nh4 {[%emt 0:00:05]} 41. h7 {[%emt 0:00:50]} Ng6 {[%emt 0:00:04]} 42. h8=Q {[%emt 0:00:43]} Nxh8 {[%emt 0:00:05]} 43. Nxh8 {[%emt 0:00:02]} Ke6 {[%emt 0:02:14]} 44. f7 {[%emt 0:00:08]} Ke7 {[%emt 0:00:02]} 45. Ke2 {[%emt 0:00:53]} d5 {[%emt 0:00:55]} 46. Kf3 {[%emt 0:00:50]} Bd6 {[%emt 0:00:15]} 47. Kg4 {[%emt 0:00:25]} Kf6 {[%emt 0:00:28]} 48. Kh5 {[%emt 0:00:02]} Kg7 {[%emt 0:00:19]} 49. Ng6 {[%emt 0:00:03]} Kxf7 {[%emt 0:00:18]} 50. Kg5 {[%emt 0:00:01]} c5 {[%emt 0:03:31]} 51. Kf5 {[%emt 0:01:22]} cxd4 {[%emt 0:00:24]} 52. cxd4 {[%emt 0:00:02]} 1-0

[Event "17th Memorial Lezcano Montalvo 2025"]
[Site "Gran Canaria"]
[Date "2025.04.18"]
[Round "7.7"]
[White "Garcia Padron, Jose"]
[Black "Petriashvili, Nikoloz"]
[Result "0-1"]
[Annotator "RC"]
[ECO "A15"]
[WhiteElo "2355"]
[BlackElo "2459"]
[PlyCount "116"]
[EventDate "2025.04.13"]
[EventType "swiss"]
[EventCountry "ESP"]
[SourceTitle "playchess.com"]
[Source "ChessBase"]
[SourceQuality "1"]
[TimeControl "5400+30"]

1. Nf3 {[%emt 0:00:35]} Nf6 {[%emt 0:00:08]} 2. c4 {[%emt 0:00:28]} g6 {[%emt 0:00:33]} 3. b4 {[%emt 0:02:17]} Bg7 {[%emt 0:01:01]} 4. Bb2 {[%emt 0:00:04]} O-O {[%emt 0:00:13]} 5. e3 {[%emt 0:00:03]} b6 {[%emt 0:00:26]} 6. Be2 {[%emt 0:00:08]} c5 {[%emt 0:01:32]} 7. a3 {[%emt 0:03:28]} Bb7 {[%emt 0:00:32]} 8. d3 {[%emt 0:01:23]} d6 {[%emt 0:00:18]} 9. Nbd2 {[%emt 0:00:30]} Nbd7 {[%emt 0:00:13]} 10. O-O {[%emt 0:00:32]} e6 {[%emt 0:00:11]} 11. Rb1 {[%emt 0:02:40]} Qe7 {[%emt 0:00:44]} 12. Ba1 {[%emt 0:10:19]} Bc6 {[%emt 0:04:12]} 13. Qc2 {[%emt 0:02:16]} Rfc8 {[%emt 0:00:26]} 14. Bc3 {[%emt 0:00:40]} a6 {[%emt 0:03:03]} 15. Qb2 {[%emt 0:00:45]} e5 {[%emt 0:02:10]} 16. Rfe1 {[%emt 0:02:30]} Nh5 {[%emt 0:01:00]} 17. Nf1 {[%emt 0:03:34]} f5 {[%emt 0:01:11]} 18. N3d2 {[%emt 0:04:23]} Nhf6 {[%emt 0:00:36]} 19. d4 {[%emt 0:03:33]} cxd4 {[%emt 0:01:54]} 20. exd4 {[%emt 0:00:06]} e4 {[%emt 0:03:12]} 21. d5 {[%emt 0:13:27]} Bb7 {[%emt 0:00:50]} 22. Bd4 {[%emt 0:01:51]} Re8 {[%emt 0:07:17]} 23. f4 {[%emt 0:07:16]} h5 {[%emt 0:08:58]} 24. Ne3 {[%emt 0:00:33]} Rab8 {[%emt 0:01:12]} 25. Rbc1 {[%emt 0:01:22]} h4 {[%emt 0:00:35]} 26. Rf1 {[%emt 0:01:56]} Ba8 {[%emt 0:02:53]} 27. Nb3 {[%emt 0:00:15]} a5 {[%emt 0:02:00]} 28. Bc3 {[%emt 0:01:49]} axb4 {[%emt 0:02:08]} 29. axb4 {[%emt 0:00:02]} b5 {[%emt 0:00:07]} 30. Nd4 {[%emt 0:00:48]} Nb6 {[%emt 0:00:36]} 31. Nxb5 {[%emt 0:03:14]} Na4 {[%emt 0:00:18]} 32. Qd2 {[%emt 0:00:16]} Nxc3 {[%emt 0:02:02]} 33. Rxc3 {[%emt 0:00:06]} Kh8 {[%emt 0:05:25]} 34. Ra3 {[%emt 0:00:36]} Qd8 {[%emt 0:00:30]} 35. Ra6 {[%emt 0:01:17]} Rb6 {[%emt 0:00:05]} 36. Ra5 {[%emt 0:00:06]} Rb8 {[%emt 0:02:36]} 37. Rc1 {[%emt 0:02:31]} Bb7 {[%emt 0:01:43]} 38. Nd4 {[%emt 0:00:32]} Qb6 {[%emt 0:00:44]} 39. c5 {[%emt 0:00:29]} dxc5 {[%emt 0:00:02]} 40. bxc5 {[%emt 0:00:09]} Qc7 {[%emt 0:00:02]} 41. d6 {[%emt 0:01:35]} Qd8 {[%emt 0:00:01]} 42. Ra7 {[%emt 0:00:59]} Nd7 {[%emt 0:02:01]} 43. Nb5 {[%emt 0:03:51]} Bc6 {[%emt 0:01:00]} 44. Nc7 {[%emt 0:00:17]} Rb2 {[%emt 0:00:14]} 45. Qd1 {[%emt 0:01:11]} Qf6 {[%emt 0:01:24]} 46. Nxe8 {[%emt 0:00:55]} Qd4 {[%emt 0:00:01]} 47. Qxd4 {[%emt 0:01:31]} Bxd4 {[%emt 0:00:02]} 48. Kf1 {[%emt 0:08:56]} Bxe3 {[%emt 0:00:05]} 49. Rca1 {[%emt 0:04:45]} h3 {[%emt 0:02:43]} 50. gxh3 {[%emt 0:00:23]} g5 {[%emt 0:00:01]} 51. Rc7 {[%emt 0:00:31]} gxf4 {[%emt 0:00:15]} 52. Rxc6 {[%emt 0:02:43]} f3 {[%emt 0:00:01]} 53. Re1 {[%emt 0:02:08]} Ne5 {[%emt 0:00:02]} 54. Rc7 {[%emt 0:00:48]} Nc4 {[%emt 0:00:35]} 55. Bxc4 {[%emt 0:02:31]} Rf2+ {[%emt 0:00:18]} 56. Kg1 {[%emt 0:00:07]} Rg2+ {[%emt 0:00:56]} 57. Kh1 {[%emt 0:00:07]} f2 {[%emt 0:00:01]} 58. Kxg2 {[%emt 0:02:13]} fxe1=Q {[%emt 0:00:04]} 0-1